Workbook

Sheet Disclaimer (hidden)
B2: Legal disclaimer
B3: Please fully read this disclaimer before using this model
E34: www.lentransolutions.com | T34: Level 8, Suite 3, 234 George Street, NSW 2000
E35: contact@lentransolutions.com | T35: ABN: 66 615 474 523

Sheet Title
C12: =Inputs!Model_Name -> Monte Carlo Simulation
C13: LMS Tutorial
C14: Sydney, January 2017
E34: www.lentransolutions.com | T34: Level 8, Suite 3, 234 George Street, NSW 2000
E35: contact@lentransolutions.com | T35: ABN: 66 615 474 523

Sheet Inputs
C1: Assumptions
C2: ="Tutorial: "&Model_Name -> Tutorial: Monte Carlo Simulation
C6: Tutorial inputs
C7: 20 year quarterly data
C8: Range | E8: 1 | F8: 2 | G8: 3 | H8: 4 | I8: Total
C9: Maximum | D9: '000 m3 | E9: 20000 | F9: 22107.2486 | G9: 26790.57543 | H9: 17359.2073 | I9: =SUM(E9:H9) -> 86257.03133
C10: Minimum | D10: '000 m3 | E10: 10000 | F10: 14271.86316 | G10: 14777.74929 | H10: 5384.787943 | I10: 44434.40039
C12: Error tolerance (<=) | D12: % | E12: 0.02
C14: Technical inputs
C15: General
C16: Tutorial name | D16: Name | E16: Monte Carlo Simulation

Sheet Calcs
C1: Calculations
C2: ="Tutorial: "&Inputs!Model_Name -> Tutorial: Monte Carlo Simulation
C6: 20 year quarterly data
C7: Range | E7: 1 | F7: 2 | G7: 3 | H7: 4 | I7: Total
C8: Maximum | D8: '000 m3 | E8: =Inputs!E9 -> 20000 | F8: =Inputs!F9 -> 22107.2486 | G8: =Inputs!G9 -> 26790.57543 | H8: =Inputs!H9 -> 17359.2073 | I8: =SUM(E8:H8) -> 86257.03133
C9: Minimum | D9: '000 m3 | E9: =Inputs!E10 -> 10000 | F9: =Inputs!F10 -> 14271.86316 | G9: =Inputs!G10 -> 14777.74929 | H9: =Inputs!H10 -> 5384.787943 | I9: 44434.40039
C11: Error tolerance (<=) | D11: % | E11: =Inputs!E12 -> 0.02
C13: Sample size calculation
C14: Standard deviation | D14: Num | E14: =_xlfn.STDEV.P(I8:I9,AVERAGE(I8:I9)) -> 17074.01759
C15: ="Gross estimation of random variable at "&E11*100&"%" -> Gross estimation of random variable at 2% | D15: Num | E15: =AVERAGE(I8:I9)/(1/E11) -> 1306.914317
C16: ="Number of iterations for error < "&E11*100&"%" -> Number of iterations for error < 2% | D16: Num | E16: =((3*E14)/E15)^2 -> 1536.100841
C18: Extracts
C19: Headline | E19: 1 | F19: 2 | G19: 3 | H19: 4 | I19: Total
C20: Average | D20: '000 m3 | E20: =AVERAGE(E39:E5038) -> 15029.11697 | F20: =AVERAGE(F39:F5038) -> 18163.50764 | G20: 20825.95699 | H20: 11453.08033 | I20: =SUM(E20:H20) -> 65471.66193
C21: Standard deviation | D21: '000 m3 | E21: =_xlfn.STDEV.P(E39:E5011) -> 2823.55251 | F21: =_xlfn.STDEV.P(F39:F5011) -> 2244.542319 | G21: =_xlfn.STDEV.P(G39:G5011) -> 3488.540449 | H21: =_xlfn.STDEV.P(H39:H5011) -> 3467.640384 | I21: =SUM(E21:H21) -> 12024.27566
C22: True error of estimate | D22: Num | I22: =(3*I21)/SQRT(E16) -> 920.3866598
C23: True error of estimate | D23: % | I23: =I22/I20 -> 0.01405778672
C25: Cross-checking
C26: Median | E26: 1 | F26: 2 | G26: 3 | H26: 4 | I26: Total
C27: Median | D27: '000 m3 | E27: =MEDIAN(E39:E5038) -> 14996.79005 | F27: =MEDIAN(F39:F5038) -> 18181.57782 | G27: 20796.22418 | H27: 11404.09519 | I27: 65489.72694
C28: Difference | D28: '000 m3 | E28: =E20-E27 -> 32.3269169 | F28: =F20-F27 -> -18.0701784 | G28: =G20-G27 -> 29.73280355 | H28: =H20-H27 -> 48.9851429 | I28: =I20-I27 -> -18.06501063
C29: Difference | D29: % | E29: =E28/E20 -> 0.002150952512 | F29: =F28/F20 -> -0.0009948617173 | G29: =G28/G20 -> 0.001427680062 | H29: =H28/H20 -> 0.004277027793 | I29: =I28/I20 -> -0.0002759210641
C31: Static average | E31: 1 | F31: 2 | G31: 3 | H31: 4 | I31: Total
C32: Static average extract | D32: '000 m3 | E32: 15161.20709 | F32: 18149.6241 | G32: 20993.43876 | H32: 11349.54453 | I32: =SUM(E32:H32) -> 65653.81448
C33: Difference | D33: '000 m3 | E33: =E20-E32 -> -132.0901192 | F33: =F20-F32 -> 13.88353721 | G33: =G20-G32 -> -167.4817741 | H33: =H20-H32 -> 103.5358062 | I33: =I20-I32 -> -182.1525499
C34: Difference | D34: % | E34: =ABS(E33/E20) -> 0.008788947447 | F34: =F33/F20 -> 0.0007643643226 | G34: =G33/G20 -> -0.008041972534 | H34: =H33/H20 -> 0.009039996503 | I34: =I33/I20 -> -0.00278215864
C35: ="Check for exceed of tolerance ("&E11*100&"%)" -> Check for exceed of tolerance (2%) | D35: Check | I35: =IF(ABS(I34)>$E$11,1,0) -> 0
C37: Simulation sample
C38: Generated random iterations | E38: 1 | F38: 2 | G38: 3 | H38: 4 | I38: Total
C39: 1 | E39: =IF($C39<=$E$16,RAND()*(E$8-E$9)+E$9,"") -> 19703.38208 | F39: =IF($C39<=$E$16,RAND()*(F$8-F$9)+F$9,"") -> 14871.03492 | G39: 25413.85501 | H39: 6187.746927 | I39: =IF(E39="","",SUM(E39:H39)) -> 66176.01894
C40: =C39+1 -> 2 | E40: =IF($C40<=$E$16,RAND()*(E$8-E$9)+E$9,"") -> 15464.20464 | F40: 16887.2781 | G40: 16200.83248 | H40: 10376.46397 | I40: =IF(E40="","",SUM(E40:H40)) -> 58928.77919
C41: =C40+1 -> 3 | E41: 12771.42125 | F41: 19910.67049 | G41: 16003.63501 | H41: 5916.436236 | I41: 54602.16298
C42: 4 | E42: 12778.16852 | F42: 20867.12234 | G42: 24698.82381 | H42: 12388.70404 | I42: 70732.81871
C43: 5 | E43: 18914.29522 | F43: 21378.70747 | G43: 18823.20065 | H43: 13904.25582 | I43: 73020.45916
C44: 6 | E44: 19222.00024 | F44: 20431.7071 | G44: 16137.08324 | H44: 7823.708066 | I44: 63614.49864
C45: 7 | E45: 17158.61455 | F45: 18188.92022 | G45: 22785.99586 | H45: 6389.46951 | I45: 64523.00014
C46: 8 | E46: 12071.51925 | F46: 15231.61804 | G46: 25939.17541 | H46: 8377.232888 | I46: 61619.54559
C47: 9 | E47: 19283.24072 | F47: 19467.65261 | G47: 18077.20055 | H47: 11923.20343 | I47: 68751.2973
C48: 10 | E48: 16407.78518 | F48: 17018.65198 | G48: 26198.23286 | H48: 14184.41899 | I48: 73809.08901
C49: 11 | E49: 13700.28404 | F49: 16751.78456 | G49: 22292.96445 | H49: 15080.75432 | I49: 67825.78737
C50: 12 | E50: 18321.93028 | F50: 16782.99677 | G50: 16915.22441 | H50: 13123.84718 | I50: 65143.99864
C51: 13 | E51: 10267.3998 | F51: 17517.30902 | G51: 25914.08887 | H51: 13735.65618 | I51: 67434.45387
C52: 14 | E52: 15372.32977 | F52: 14714.90882 | G52: 21817.34784 | H52: 10178.19454 | I52: 62082.78098
C53: 15 | E53: 16604.89229 | F53: 20355.94105 | G53: 22664.80066 | H53: 7655.009614 | I53: 67280.64362
C54: 16 | E54: 15999.25328 | F54: 18267.14953 | G54: 18776.59581 | H54: 12853.25878 | I54: 65896.2574
C55: 17 | E55: 12467.87945 | F55: 19610.97996 | G55: 20414.1597 | H55: 8614.38191 | I55: 61107.40102
C56: 18 | E56: 16235.17918 | F56: 17182.57037 | G56: 21559.69353 | H56: 12670.19039 | I56: 67647.63346
C57: 19 | E57: 14660.07459 | F57: 21106.1566 | G57: 21767.25665 | H57: 15407.64734 | I57: 72941.13517
C58: 20 | E58: 18623.97569 | F58: 15453.80653 | G58: 25337.1314 | H58: 16832.91606 | I58: 76247.82969
C59: 21 | E59: 16505.02873 | F59: 16421.86112 | G59: 24478.73381 | H59: 14917.32345 | I59: 72322.94711
C60: 22 | E60: =IF($C60<=$E$16,RAND()*(E$8-E$9)+E$9,"") -> 12371.36168 | F60: 17900.80972 | G60: 23377.46581 | H60: 15635.22439 | I60: 69284.8616
C61: 23 | E61: 16105.91573 | F61: 15080.28191 | G61: 14883.65224 | H61: 7430.028799 | I61: 53499.87868
C62: 24 | E62: 15327.49558 | F62: 21564.93981 | G62: 23187.28922 | H62: 11044.216 | I62: 71123.94061
C63: 25 | E63: 13471.3123 | F63: 18483.57058 | G63: 18245.32434 | H63: 9994.533349 | I63: 60194.74057
C64: 26 | E64: 11195.48536 | F64: 17840.34145 | G64: 20890.58909 | H64: 9491.899738 | I64: 59418.31564
C65: 27 | E65: 13783.8205 | F65: 16680.67712 | G65: 25765.94301 | H65: 6347.85984 | I65: 62578.30047
C66: 28 | E66: 12243.19634 | F66: 16053.35723 | G66: 20790.36685 | H66: 15213.87944 | I66: 64300.79985
C67: 29 | E67: 16494.61248 | F67: 21363.82129 | G67: 22354.55162 | H67: 8893.173656 | I67: 69106.15905
C68: 30 | E68: 10751.34393 | F68: 20675.80062 | G68: 24762.38652 | H68: 15640.20993 | I68: 71829.74099
C69: 31 | E69: 10688.52287 | F69: 14896.65626 | G69: 19981.72671 | H69: 9340.544985 | I69: 54907.45083
C70: 32 | E70: 15484.89967 | F70: 19062.19896 | G70: 26168.82552 | H70: 11369.78954 | I70: 72085.71368
C71: 33 | E71: 16085.74897 | F71: 16524.16724 | G71: 17751.80324 | H71: 14039.87698 | I71: 64401.59643
C72: 34 | E72: 14466.69478 | F72: 18361.159 | G72: 25290.64148 | H72: 15408.40121 | I72: 73526.89648
C73: 35 | E73: 19680.3307 | F73: 19019.29652 | G73: 22445.21129 | H73: 9606.844118 | I73: 70751.68262
C74: 36 | E74: 19960.45587 | F74: 14272.37684 | G74: 15805.80563 | H74: 9352.190059 | I74: 59390.8284
C75: 37 | E75: 14768.61693 | F75: 17686.36203 | G75: 19046.82179 | H75: 16840.23057 | I75: 68342.03132
C76: 38 | E76: 15934.95295 | F76: 14884.25457 | G76: 24355.23004 | H76: 11805.5058 | I76: 66979.94337
C77: 39 | E77: 19280.38733 | F77: 14522.50878 | G77: 25750.57383 | H77: 5893.645851 | I77: 65447.11579
C78: 40 | E78: 12585.91375 | F78: 21427.69929 | G78: 20142.2258 | H78: 11988.82404 | I78: 66144.66288
C79: 41 | E79: 12884.10308 | F79: 16095.82332 | G79: 20496.46642 | H79: 14859.20213 | I79: 64335.59495
C80: 42 | E80: =IF($C80<=$E$16,RAND()*(E$8-E$9)+E$9,"") -> 18937.57961 | F80: 14422.4885 | G80: 17614.51679 | H80: 14798.16143 | I80: 65772.74634
C81: 43 | E81: 15585.45834 | F81: 20193.96398 | G81: 20056.47726 | H81: 11852.041 | I81: 67687.94057
C82: 44 | E82: 11349.93044 | F82: 18128.83089 | G82: 19874.35335 | H82: 13297.76498 | I82: 62650.87966
C83: 45 | E83: 17579.47545 | F83: 20832.69285 | G83: 23139.15657 | H83: 10702.4619 | I83: 72253.78677
C84: 46 | E84: 10987.4433 | F84: 19597.93762 | G84: 25982.4009 | H84: 13357.65185 | I84: 69925.43367
C85: 47 | E85: 18925.58668 | F85: 16094.0723 | G85: 19763.57643 | H85: 13715.84369 | I85: 68499.0791
C86: 48 | E86: 18031.1342 | F86: 21926.93418 | G86: 16682.6644 | H86: 14378.64163 | I86: 71019.37442
C87: 49 | E87: 12375.48646 | F87: 16024.7745 | G87: 22932.18358 | H87: 5521.107989 | I87: 56853.55253
C88: 50 | E88: 17667.48472 | F88: 19177.13871 | G88: 22750.94988 | H88: 14191.60686 | I88: 73787.18017
C89: 51 | E89: 10518.57352 | F89: 18536.73882 | G89: 25184.03553 | H89: 10662.83489 | I89: 64902.18276
C90: 52 | E90: 14056.091 | F90: 16629.88846 | G90: 24995.13272 | H90: 11845.85255 | I90: 67526.96474
C91: 53 | E91: 13574.45362 | F91: 14989.36681 | G91: 19285.23407 | H91: 11446.43869 | I91: 59295.4932
C92: 54 | E92: 11102.93711 | F92: 17158.29775 | G92: 24713.45068 | H92: 15637.22162 | I92: 68611.90716
C93: 55 | E93: 14922.16574 | F93: 14725.04971 | G93: 20280.72701 | H93: 8114.885865 | I93: 58042.82832
C94: 56 | E94: 19543.15875 | F94: 20884.43318 | G94: 16505.77578 | H94: 15133.25592 | I94: 72066.62363
C95: 57 | E95: 10718.12345 | F95: 15822.92159 | G95: 24536.21086 | H95: 11005.52027 | I95: 62082.77617
C96: 58 | E96: 19033.68928 | F96: 17189.39355 | G96: 16904.15989 | H96: 12743.24951 | I96: 65870.49223
C97: 59 | E97: 11443.54628 | F97: 18147.21643 | G97: 20822.22169 | H97: 13520.65141 | I97: 63933.6358
C98: 60 | E98: 19265.11463 | F98: 19316.15828 | G98: 24807.51579 | H98: 10151.19942 | I98: 73539.98813
C99: 61 | E99: 18623.1436 | F99: 14744.70052 | G99: 22527.18829 | H99: 17268.40235 | I99: 73163.43476
C100: 62 | E100: =IF($C100<=$E$16,RAND()*(E$8-E$9)+E$9,"") -> 14663.83485 | F100: 20810.36075 | G100: 19766.4623 | H100: 11546.84687 | I100: 66787.50477
C101: 63 | E101: 16665.49533 | F101: 18285.58727 | G101: 17859.75753 | H101: 6109.373022 | I101: 58920.21315
C102: 64 | E102: 19407.13705 | F102: 16221.05182 | G102: 17411.31486 | H102: 16853.85786 | I102: 69893.36158
C103: 65 | E103: 19335.16772 | F103: 16144.37425 | G103: 19554.71945 | H103: 5858.153997 | I103: 60892.41542
C104: 66 | E104: 12921.53957 | F104: 15612.31037 | G104: 21727.79625 | H104: 10415.55731 | I104: =IF(E104="","",SUM(E104:H104)) -> 60677.20349
C105: =C104+1 -> 67 | E105: 15534.31741 | F105: 15045.88957 | G105: 16284.81181 | H105: 8817.199485 | I105: 55682.21827
C106: 68 | E106: 10086.48796 | F106: 16082.64702 | G106: 20839.82396 | H106: 15679.63802 | I106: 62688.59696
C107: 69 | E107: 19556.46815 | F107: 17350.10834 | G107: 20563.73039 | H107: 6947.718958 | I107: 64418.02585
C108: 70 | E108: 13678.54306 | F108: 21316.66118 | G108: 20595.43626 | H108: 13817.54359 | I108: 69408.18409
C109: 71 | E109: 14638.99267 | F109: 16773.84496 | G109: 19253.18929 | H109: 17107.00764 | I109: 67773.03455
C110: 72 | E110: 17920.96607 | F110: 17693.96572 | G110: 16722.80034 | H110: 7754.270968 | I110: 60092.0031
C111: 73 | E111: 11284.89734 | F111: 19007.79933 | G111: 22073.82417 | H111: 9786.301958 | I111: 62152.82281
C112: 74 | E112: 13895.06682 | F112: 15785.41849 | G112: 26444.86656 | H112: 13709.99499 | I112: 69835.34686
C113: 75 | E113: 13119.90914 | F113: 14818.57765 | G113: 24679.55624 | H113: 9793.177649 | I113: 62411.22067
C114: 76 | E114: 19346.52412 | F114: 19377.67995 | G114: 21397.17939 | H114: 15004.00628 | I114: 75125.38974
C115: 77 | E115: 15298.24926 | F115: 19323.28803 | G115: 21351.87305 | H115: 9667.084182 | I115: 65640.49452
C116: 78 | E116: 10106.2859 | F116: 14802.96344 | G116: 15383.02605 | H116: 15319.86328 | I116: 55612.13867
C117: 79 | E117: 13223.10598 | F117: 20117.92038 | G117: 17534.71643 | H117: 6435.242037 | I117: 57310.98482
C118: 80 | E118: 18103.25311 | F118: 21777.10748 | G118: 16586.01453 | H118: 13938.28153 | I118: 70404.65665
C119: 81 | E119: 19460.6538 | F119: 16361.74251 | G119: 24002.64326 | H119: 12547.48149 | I119: 72372.52106
C120: 82 | E120: =IF($C120<=$E$16,RAND()*(E$8-E$9)+E$9,"") -> 17757.98078 | F120: 16152.81332 | G120: 17199.72011 | H120: 15814.30225 | I120: 66924.81647
C121: 83 | E121: 17883.80968 | F121: 17616.11787 | G121: 18833.46166 | H121: 16078.72146 | I121: 70412.11067
C122: 84 | E122: 11706.10327 | F122: 19948.03505 | G122: 16651.7399 | H122: 5579.158624 | I122: 53885.03684
C123: 85 | E123: 11769.21507 | F123: 16197.90053 | G123: 19886.10312 | H123: 13537.28266 | I123: 61390.50138
C124: 86 | E124: 19092.29165 | F124: 20622.2835 | G124: 18515.0394 | H124: 7803.230574 | I124: 66032.84512
C125: 87 | E125: 10099.3147 | F125: 21043.36934 | G125: 24329.10564 | H125: 11472.65609 | I125: 66944.44576
C126: 88 | E126: 15420.23705 | F126: 19349.77213 | G126: 24776.71437 | H126: 15943.08883 | I126: 75489.81239
C127: 89 | E127: 11255.1543 | F127: 16399.63206 | G127: 18083.18244 | H127: 10196.17237 | I127: 55934.14117
C128: 90 | E128: 16379.17225 | F128: 18973.58523 | G128: 24901.42514 | H128: 11046.88718 | I128: 71301.0698
C129: 91 | E129: 10861.45256 | F129: 21984.20593 | G129: 22457.12583 | H129: 5923.671116 | I129: 61226.45544
C130: 92 | E130: 15852.80134 | F130: 14692.8407 | G130: 16631.28706 | H130: 6290.564981 | I130: 53467.49408
C131: 93 | E131: 12881.84225 | F131: 14907.26658 | G131: 20710.65912 | H131: 14547.91898 | I131: 63047.68694
C132: 94 | E132: 17393.80699 | F132: 21567.81517 | G132: 24628.24563 | H132: 10569.97742 | I132: 74159.8452
C133: 95 | E133: 17729.94181 | F133: 16580.5998 | G133: 22036.86197 | H133: 6500.849065 | I133: 62848.25265
C134: 96 | E134: 10625.6969 | F134: 15603.31119 | G134: 26746.86375 | H134: 8323.268705 | I134: 61299.14055
C135: 97 | E135: 15243.27317 | F135: 18647.90831 | G135: 26062.49661 | H135: 16120.40906 | I135: 76074.08714
C136: 98 | E136: 18859.04251 | F136: 18970.47756 | G136: 14816.99027 | H136: 13259.02305 | I136: 65905.53339
C137: 99 | E137: 10625.71957 | F137: 20004.08399 | G137: 18704.45936 | H137: 13660.62831 | I137: 62994.89123
C138: 100 | E138: 17968.99804 | F138: 17054.49386 | G138: 19048.98589 | H138: 10730.09349 | I138: 64802.57128
C139: 101 | E139: 12106.89625 | F139: 17212.3836 | G139: 21587.41129 | H139: 17101.73528 | I139: 68008.42642
C140: 102 | E140: =IF($C140<=$E$16,RAND()*(E$8-E$9)+E$9,"") -> 15695.07694 | F140: 14729.5168 | G140: 20421.43517 | H140: 9042.40884 | I140: 59888.43775
C141: 103 | E141: 18559.6627 | F141: 20192.98026 | G141: 22528.27264 | H141: 16444.04541 | I141: 77724.96102
C142: 104 | E142: 17163.96247 | F142: 21444.24995 | G142: 20487.61783 | H142: 16960.28327 | I142: 76056.11352
C143: 105 | E143: 19878.30873 | F143: 16287.12588 | G143: 26387.41924 | H143: 11724.36442 | I143: 74277.21827
C144: 106 | E144: 13003.20863 | F144: 21498.21896 | G144: 26610.97223 | H144: 7472.206793 | I144: 68584.60662
C145: 107 | E145: 11146.79724 | F145: 17670.31801 | G145: 15588.34329 | H145: 7932.444529 | I145: 52337.90306
C146: 108 | E146: 14849.00988 | F146: 15765.68077 | G146: 20496.92192 | H146: 11566.93193 | I146: 62678.54451
C147: 109 | E147: 13816.10975 | F147: 17696.91604 | G147: 20945.83386 | H147: 5764.953131 | I147: 58223.81278
C148: 110 | E148: 18416.20125 | F148: 21087.8884 | G148: 17858.0203 | H148: 12945.76007 | I148: 70307.87002
C149: 111 | E149: 16070.95191 | F149: 19170.56845 | G149: 20258.53961 | H149: 16636.95165 | I149: 72137.0116
C150: 112 | E150: 17210.31134 | F150: 15658.94386 | G150: 19364.3811 | H150: 11274.4219 | I150: 63508.0582
C151: 113 | E151: 12448.06274 | F151: 19802.72395 | G151: 19812.70412 | H151: 6156.775768 | I151: 58220.26657
C152: 114 | E152: 13975.33631 | F152: 18670.32675 | G152: 21291.1816 | H152: 9730.190612 | I152: 63667.03527
C153: 115 | E153: 14399.98045 | F153: 18604.52825 | G153: 21365.93151 | H153: 15790.92609 | I153: 70161.3663
C154: 116 | E154: 14545.24107 | F154: 15052.14174 | G154: 19543.92413 | H154: 12578.31785 | I154: 61719.62479
C155: 117 | E155: 13268.42436 | F155: 18639.47664 | G155: 18223.11299 | H155: 11513.72055 | I155: 61644.73454
C156: 118 | E156: 19788.6782 | F156: 14528.07656 | G156: 21536.08158 | H156: 5661.802523 | I156: 61514.63886
C157: 119 | E157: 10137.18667 | F157: 15537.59311 | G157: 15121.1796 | H157: 12618.79368 | I157: 53414.75306
C158: 120 | E158: 19722.31712 | F158: 15790.87428 | G158: 19569.9042 | H158: 15703.06238 | I158: 70786.15798
C159: 121 | E159: 16936.087 | F159: 17312.46398 | G159: 22642.78878 | H159: 13306.43722 | I159: 70197.77698
C160: 122 | E160: =IF($C160<=$E$16,RAND()*(E$8-E$9)+E$9,"") -> 14787.54889 | F160: 17486.93499 | G160: 19088.53415 | H160: 8195.919774 | I160: 59558.93782
C161: 123 | E161: 13542.89649 | F161: 16450.4657 | G161: 25542.36046 | H161: 16863.46846 | I161: 72399.19111
C162: 124 | E162: 12937.68949 | F162: 21089.68081 | G162: 19701.22261 | H162: 14549.77763 | I162: 68278.37054
C163: 125 | E163: 13537.1462 | F163: 17660.19519 | G163: 15942.77633 | H163: 11797.75462 | I163: 58937.87234
C164: 126 | E164: 13841.32827 | F164: 18804.92239 | G164: 19427.31189 | H164: 5697.425406 | I164: 57770.98796
C165: 127 | E165: 14797.90868 | F165: 17018.15455 | G165: 23476.58134 | H165: 10739.10893 | I165: 66031.75351
C166: 128 | E166: 13931.31943 | F166: 19457.72048 | G166: 18151.2229 | H166: 10639.30463 | I166: 62179.56744
C167: 129 | E167: 18664.99782 | F167: 18658.49717 | G167: 25399.44431 | H167: 12151.01842 | I167: 74873.95772
C168: 130 | E168: 16233.90911 | F168: 19870.35637 | G168: 25763.72613 | H168: 14497.94235 | I168: =IF(E168="","",SUM(E168:H168)) -> 76365.93396
C169: =C168+1 -> 131 | E169: 18065.36704 | F169: 20502.09085 | G169: 17185.55446 | H169: 9125.812221 | I169: 64878.82457
C170: 132 | E170: 13321.89677 | F170: 19886.69672 | G170: 19337.89294 | H170: 7160.471679 | I170: 59706.95811
C171: 133 | E171: 18062.26583 | F171: 21437.83923 | G171: 26035.93663 | H171: 14195.23908 | I171: 79731.28077
C172: 134 | E172: 19522.36193 | F172: 15910.61695 | G172: 15108.44227 | H172: 7648.307825 | I172: 58189.72897
C173: 135 | E173: 18320.93155 | F173: 15650.44465 | G173: 21880.89837 | H173: 15419.79098 | I173: 71272.06555
C174: 136 | E174: 14979.22825 | F174: 16900.71047 | G174: 24333.51545 | H174: 14890.44055 | I174: 71103.89472
C175: 137 | E175: 10417.60823 | F175: 16935.88095 | G175: 20451.80218 | H175: 6721.367501 | I175: 54526.65887
C176: 138 | E176: 18729.86002 | F176: 14924.30879 | G176: 17608.44313 | H176: 5913.076078 | I176: 57175.68803
C177: 139 | E177: 12064.91419 | F177: 14301.40771 | G177: 23654.07224 | H177: 14308.09562 | I177: 64328.48976
C178: 140 | E178: 18602.8383 | F178: 14524.0283 | G178: 17420.43605 | H178: 13142.06473 | I178: 63689.36739
C179: 141 | E179: 10095.54068 | F179: 17434.97332 | G179: 21469.24906 | H179: 12536.83658 | I179: 61536.59963
C180: 142 | E180: =IF($C180<=$E$16,RAND()*(E$8-E$9)+E$9,"") -> 10236.57703 | F180: 20320.61053 | G180: 25686.20375 | H180: 10259.54411 | I180: 66502.93541
C181: 143 | E181: 11114.91654 | F181: 21264.10903 | G181: 23086.82748 | H181: 14044.18625 | I181: 69510.0393
C182: 144 | E182: 17439.92226 | F182: 18759.29033 | G182: 22272.90965 | H182: 15163.6485 | I182: 73635.77074
C183: 145 | E183: 11975.78766 | F183: 18410.25301 | G183: 18533.75806 | H183: 8598.80605 | I183: 57518.60477
C184: 146 | E184: 12465.02 | F184: 20365.95629 | G184: 26634.04389 | H184: 13549.48756 | I184: 73014.50774
C185: 147 | E185: 16525.20798 | F185: 19348.1081 | G185: 21170.1827 | H185: 5432.948049 | I185: 62476.44683
C186: 148 | E186: 10148.43513 | F186: 14865.17659 | G186: 16716.44952 | H186: 6960.417048 | I186: 48690.47828
C187: 149 | E187: 15600.67286 | F187: 20906.96386 | G187: 16624.60612 | H187: 6800.461418 | I187: 59932.70425
C188: 150 | E188: 14592.31419 | F188: 20805.27941 | G188: 16130.47309 | H188: 10427.7457 | I188: 61955.81239
C189: 151 | E189: 15464.21912 | F189: 21184.41858 | G189: 24339.781 | H189: 10972.86416 | I189: 71961.28287
C190: 152 | E190: 17899.01407 | F190: 19376.58862 | G190: 14880.30003 | H190: 8699.625608 | I190: 60855.52833
C191: 153 | E191: 13745.86206 | F191: 17348.20461 | G191: 19876.57821 | H191: 8014.144332 | I191: 58984.78921
C192: 154 | E192: 15870.6229 | F192: 17264.83479 | G192: 25579.30491 | H192: 11494.79103 | I192: 70209.55362
C193: 155 | E193: 14920.5111 | F193: 20892.4704 | G193: 14877.79868 | H193: 11915.16989 | I193: 62605.95007
C194: 156 | E194: 12835.10955 | F194: 19572.38822 | G194: 18991.45974 | H194: 5452.270215 | I194: 56851.22773
C195: 157 | E195: 15156.64612 | F195: 18472.10144 | G195: 24279.70477 | H195: 14409.04876 | I195: 72317.50109
C196: 158 | E196: 14843.88245 | F196: 20271.99589 | G196: 25304.04791 | H196: 16803.82783 | I196: 77223.75408
C197: 159 | E197: 15284.23539 | F197: 17847.62576 | G197: 16507.00046 | H197: 12875.2204 | I197: 62514.082
C198: 160 | E198: 14476.63767 | F198: 16680.55843 | G198: 17595.19834 | H198: 9159.776825 | I198: 57912.17126
C199: 161 | E199: 12136.47321 | F199: 16115.70576 | G199: 20348.00483 | H199: 13647.29326 | I199: 62247.47706
C200: 162 | E200: =IF($C200<=$E$16,RAND()*(E$8-E$9)+E$9,"") -> 18775.48633 | F200: 18841.9808 | G200: 18510.97493 | H200: 13445.8225 | I200: 69574.26456
C201: 163 | E201: 19654.76917 | F201: 16958.05655 | G201: 20717.1736 | H201: 11627.03051 | I201: 68957.02982
C202: 164 | E202: 15933.54078 | F202: 19111.93252 | G202: 21757.28381 | H202: 8788.95708 | I202: 65591.71419
C203: 165 | E203: 12436.08839 | F203: 20762.45641 | G203: 25939.13633 | H203: 6211.422787 | I203: 65349.10391
C204: 166 | E204: 13482.83709 | F204: 20231.49059 | G204: 26455.498 | H204: 9666.983924 | I204: 69836.80961
C205: 167 | E205: 17262.85538 | F205: 16401.34687 | G205: 19391.91966 | H205: 14175.78939 | I205: 67231.91131
C206: 168 | E206: 18785.63884 | F206: 15116.86978 | G206: 22722.72875 | H206: 13052.15104 | I206: 69677.3884
C207: 169 | E207: 15803.5133 | F207: 18110.84771 | G207: 24350.98039 | H207: 11176.82167 | I207: 69442.16307
C208: 170 | E208: 15690.97551 | F208: 15171.02366 | G208: 17707.39037 | H208: 17219.40172 | I208: 65788.79125
C209: 171 | E209: 16657.57001 | F209: 18528.80693 | G209: 17841.5062 | H209: 5562.384294 | I209: 58590.26744
... 4829 more rows
